fUSD/lending_fUSD_20240627
["ID","MTS","AMOUNT","RATE_DAILY","PERIOD"]
[330471279,1719470202251,-500.0,0.00043835,120]
[330471280,1719470202275,-500.0,0.00043835,120]
[330471281,1719470202300,-959.84,0.00043835,120]
[330471282,1719470202326,-505.02903085,0.00043835,120]
[330471283,1719470202352,-500.0,0.00043835,120]
[330471284,1719470202376,-1243.35,0.00043835,120]
[330471285,1719470202632,-501.50390701,0.00043835,120]
[330471286,1719470202656,-1414.29,0.00043835,120]
[330471287,1719470202679,-500.0,0.00043835,120]
[330471288,1719470202702,-500.0,0.00043835,120]
[330471289,1719470202726,-500.0,0.00043835,120]
[330471290,1719470202749,-500.0,0.00043835,120]
[330471291,1719470202773,-2874.94,0.00043835,120]
[330471292,1719470202797,-500.0,0.00043835,120]
[330471293,1719470202821,-1564.42,0.00043835,120]
[330471294,1719470202848,-500.0,0.00043835,120]
[330471295,1719470202872,-859.35,0.00043835,120]
[330471296,1719470202897,-500.0,0.00043835,120]
[330471297,1719470202924,-500.0,0.00043835,120]
[330471298,1719470202949,-555.14,0.00043835,120]
[330471299,1719470202973,-500.0,0.00043835,120]
[330471300,1719470202997,-500.0,0.00043835,120]
[330471301,1719470203021,-502.82,0.00043835,120]
[330471302,1719470203045,-500.0,0.00043835,120]
[330471303,1719470203070,-1528.43,0.00043835,120]
[330471304,1719470203095,-500.0,0.00043835,120]
[330471305,1719470203121,-710.59,0.00043835,120]
[330471306,1719470203145,-500.0,0.00043835,120]
[330471307,1719470203170,-500.0,0.00043835,120]
[330471308,1719470203194,-674.08,0.00043835,120]
[330471309,1719470203218,-500.0,0.00043835,120]
[330471310,1719470203245,-1576.33,0.00043835,120]
[330471311,1719470203269,-500.0,0.00043835,120]
[330471312,1719470203294,-1361.74,0.00043835,120]
[330471313,1719470203319,-500.0,0.00043835,120]
[330471314,1719470203343,-513.11525211,0.00043835,120]
[330471315,1719470203367,-2000.0,0.00043835,120]
[330471316,1719470203392,-1515.63,0.00043835,120]
[330471317,1719470203417,-500.0,0.00043835,120]
[330471318,1719470203442,-500.0,0.00043835,120]
[330471319,1719470203466,-500.0,0.00043835,120]
[330471320,1719470203491,-814.33,0.00043835,120]
[330471321,1719470203514,-641.74,0.00043835,120]
[330471322,1719470203539,-500.0,0.00043835,120]
[330471323,1719470203564,-500.0,0.00043835,120]
[330471324,1719470203589,-500.0,0.00043835,120]
[330471325,1719470203613,-500.0,0.00043835,120]
[330471326,1719470203636,-500.0,0.00043835,120]
[330471327,1719470203659,-786.61,0.00043835,120]
[330471328,1719470203683,-869.52,0.00043835,120]
[330471329,1719470203706,-770.1,0.00043835,120]
[330471330,1719470203730,-530.15,0.00043835,120]
[330471331,1719470203753,-500.0,0.00043835,120]
[330471332,1719470203777,-500.0,0.00043835,120]
[330471333,1719470203802,-500.0,0.00043835,120]
[330471334,1719470203829,-500.0,0.00043835,120]
[330471335,1719470203855,-500.0,0.00043835,120]
[330471336,1719470203879,-1271.15,0.00043835,120]
[330471337,1719470203901,-500.0,0.00043835,120]
[330471338,1719470203926,-589.7,0.00043835,120]
[330471339,1719470203951,-500.0,0.00043835,120]
[330471340,1719470203975,-500.0,0.00043835,120]
[330471341,1719470203998,-500.0,0.00043835,120]
[330471342,1719470204021,-500.0,0.00043835,120]
[330471343,1719470204044,-500.0,0.00043835,120]
[330471344,1719470204069,-774.58,0.00043835,120]
[330471345,1719470204092,-500.0,0.00043835,120]
[330471346,1719470204118,-1463.53,0.00043835,120]
[330471347,1719470204141,-500.0,0.00043835,120]
[330471348,1719470204165,-500.0,0.00043835,120]
[330471349,1719470204190,-6734.94,0.00043835,120]
[330471350,1719470204215,-500.0,0.00043835,120]
[330471351,1719470204242,-500.0,0.00043835,120]
[330471352,1719470204266,-500.0,0.00043835,120]
[330471353,1719470204290,-782.8,0.00043835,120]
[330471354,1719470204317,-2156.13,0.00043835,120]
[330471355,1719470204342,-500.0,0.00043835,120]
[330471356,1719470204366,-500.0,0.00043835,120]
[330471357,1719470204390,-3406.33,0.00043835,120]
[330471358,1719470204412,-500.0,0.00043835,120]
[330471359,1719470204436,-513.04020828,0.00043835,120]
[330471360,1719470204459,-786.33,0.00043835,120]
[330471361,1719470204484,-835.99,0.00043835,120]
[330471362,1719470204507,-1294.0,0.00043835,120]
[330471363,1719470204530,-500.0,0.00043835,120]
[330471364,1719470204554,-588.46,0.00043835,120]
[330471365,1719470204578,-1054.64,0.00043835,120]
[330471366,1719470204602,-500.0,0.00043835,120]
[330471367,1719470204626,-634.82,0.00043835,120]
[330471368,1719470204650,-500.0,0.00043835,120]
[330471369,1719470204674,-500.0,0.00043835,120]
[330471370,1719470204697,-500.0,0.00043835,120]
[330471371,1719470204721,-846.73,0.00043835,120]
[330471372,1719470204745,-500.0,0.00043835,120]
[330471373,1719470204776,-857.15,0.00043835,120]
[330471374,1719470204800,-1167.2,0.00043835,120]
[330471375,1719470204826,-500.0,0.00043835,120]
[330471376,1719470204851,-500.0,0.00043835,120]
[330471377,1719470204887,-500.0,0.00043835,120]
[330471378,1719470204911,-500.0,0.00043835,120]
[330471379,1719470204936,-1476.27,0.00043835,120]
[330471380,1719470204960,-532.82,0.00043835,120]
[330471381,1719470204983,-579.13,0.00043835,120]
[330471382,1719470205007,-1195.67,0.00043835,120]
[330471383,1719470205030,-500.0,0.00043835,120]
[330471384,1719470205053,-2774.25,0.00043835,120]
[330471385,1719470205076,-500.0,0.00043835,120]
[330471386,1719470205099,-500.0,0.00043835,120]
[330471387,1719470205122,-500.0,0.00043835,120]
[330471388,1719470205145,-500.0,0.00043835,120]
[330471389,1719470205168,-801.53,0.00043835,120]
[330471390,1719470205432,-259.81521748,0.00043835,120]
[330471391,1719470205457,-500.0,0.00043835,120]
[330471392,1719470205481,-500.50436917,0.00043835,120]
[330471393,1719470205506,-500.0,0.00043835,120]
[330471394,1719470205531,-500.0,0.00043835,120]
[330471395,1719470205554,-500.0,0.00043835,120]
[330471396,1719470205578,-691.81,0.00043835,120]
[330471397,1719470205601,-500.0,0.00043835,120]
[330471398,1719470205624,-527.36,0.00043835,120]
[330471399,1719470205647,-936.92,0.00043835,120]
[330471400,1719470205671,-500.0,0.00043835,120]
[330471401,1719470205695,-500.0,0.00043835,120]
[330471402,1719470205718,-500.0,0.00043835,120]
[330471403,1719470205742,-500.0,0.00043835,120]
[330471404,1719470205766,-2793.01,0.00043835,120]
[330471405,1719470205790,-500.0,0.00043835,120]
[330471406,1719470205814,-1183.11,0.00043835,120]
[330471407,1719470205838,-500.0,0.00043835,120]
[330471408,1719470205868,-500.0,0.00043835,120]
[330471409,1719470205894,-500.0,0.00043835,120]
[330471410,1719470205918,-1640.8,0.00043835,120]
[330471411,1719470205943,-500.0,0.00043835,120]
[330471412,1719470205967,-500.0,0.00043835,120]
[330471413,1719470205992,-500.0,0.00043835,120]
[330471414,1719470206016,-500.0,0.00043835,120]
[330471415,1719470206039,-500.0,0.00043835,120]
[330471416,1719470206063,-500.0,0.00043835,120]
[330471417,1719470206088,-186.40767346,0.00043835,120]
[330471418,1719470206112,-1476.75,0.00043835,120]
[330471419,1719470206135,-500.0,0.00043835,120]
[330471420,1719470206159,-500.0,0.00043835,120]
[330471421,1719470206182,-500.0,0.00043835,120]
[330471422,1719470206206,-500.0,0.00043835,120]
[330471423,1719470206229,-3889.99,0.00043835,120]
[330471424,1719470206255,-500.0,0.00043835,120]
[330471425,1719470206277,-1036.79,0.00043835,120]
[330471426,1719470206301,-500.0,0.00043835,120]
[330471427,1719470206325,-500.0,0.00043835,120]
[330471428,1719470206349,-500.0,0.00043835,120]
[330471429,1719470206373,-1854.56,0.00043835,120]
[330471430,1719470206397,-980.1,0.00043835,120]
[330471431,1719470206421,-500.0,0.00043835,120]
[330471432,1719470206445,-2005.3,0.00043835,120]
[330471433,1719470206468,-500.0,0.00043835,120]
[330471434,1719470206492,-500.0,0.00043835,120]
[330471435,1719470206515,-1131.1,0.00043835,120]
[330471436,1719470206539,-500.0,0.00043835,120]
[330471437,1719470206563,-500.0,0.00043835,120]
[330471438,1719470206586,-1288.44,0.00043835,120]
[330471439,1719470206609,-924.79,0.00043835,120]
[330471440,1719470206632,-668.42,0.00043835,120]
[330471441,1719470206655,-500.0,0.00043835,120]
[330471442,1719470206678,-1674.49,0.00043835,120]
[330471443,1719470206701,-500.0,0.00043835,120]
[330471444,1719470206725,-500.0,0.00043835,120]
[330471445,1719470206748,-2679.79,0.00043835,120]
[330471446,1719470206771,-500.0,0.00043835,120]
[330471447,1719470206795,-500.0,0.00043835,120]
[330471448,1719470206819,-1561.64,0.00043835,120]
[330471449,1719470206847,-636.72,0.00043835,120]
[330471450,1719470206871,-452.407231,0.00043835,120]
[330471451,1719470206895,-500.0,0.00043835,120]
[330471452,1719470206920,-1159.09,0.00043835,120]
[330471453,1719470206946,-500.0,0.00043835,120]
[330471454,1719470206968,-500.0,0.00043835,120]
[330471455,1719470206990,-500.0,0.00043835,120]
[330471456,1719470207013,-500.0,0.00043835,120]
[330471457,1719470207036,-502.07458515,0.00043835,120]
[330471458,1719470207061,-913.58,0.00043835,120]
[330471459,1719470207087,-1874.83,0.00043835,120]
[330471460,1719470207111,-1465.18,0.00043835,120]
[330471461,1719470207134,-500.0,0.00043835,120]
[330471462,1719470207157,-905.26,0.00043835,120]
[330471463,1719470207180,-500.0,0.00043835,120]
[330471464,1719470207204,-500.0,0.00043835,120]
[330471465,1719470207227,-500.0,0.00043835,120]
[330471466,1719470207251,-2849.18,0.00043835,120]
[330471467,1719470207277,-2209.47,0.00043835,120]
[330471468,1719470207301,-1555.67,0.00043835,120]
[330471469,1719470207326,-2870.9,0.00043835,120]
[330471470,1719470207350,-500.0,0.00043835,120]
[330471471,1719470207379,-500.0,0.00043835,120]
[330471472,1719470207415,-500.0,0.00043835,120]
[330471473,1719470207441,-4997.88,0.00043835,120]
[330471474,1719470207464,-503.30912636,0.00043835,120]
[330471475,1719470207487,-500.0,0.00043835,120]
[330471476,1719470207510,-500.0,0.00043835,120]
[330471477,1719470207534,-1104.17,0.00043835,120]
[330471478,1719470207558,-500.0,0.00043835,120]
[330471479,1719470207581,-500.0,0.00043835,120]
[330471480,1719470207606,-614.57,0.00043835,120]
[330471481,1719470207630,-500.0,0.00043835,120]
[330471482,1719470207653,-1612.3,0.00043835,120]
[330471483,1719470207676,-932.71,0.00043835,120]
[330471484,1719470207700,-1353.88,0.00043835,120]
[330471485,1719470207723,-1532.61,0.00043835,120]
[330471486,1719470207747,-1614.2,0.00043835,120]
[330471487,1719470207770,-1559.2,0.00043835,120]
[330471488,1719470207794,-575.88,0.00043835,120]
[330471489,1719470207817,-500.0,0.00043835,120]
[330471490,1719470207844,-977.08,0.00043835,120]
[330471491,1719470207868,-500.0,0.00043835,120]
[330471492,1719470207891,-569.22,0.00043835,120]
[330471493,1719470207913,-500.0,0.00043835,120]
[330471494,1719470207938,-500.0,0.00043835,120]
[330471495,1719470208198,-500.0,0.00043835,120]
[330471496,1719470208223,-2741.5,0.00043835,120]
[330471497,1719470208249,-1664.59,0.00043835,120]
[330471498,1719470208272,-500.0,0.00043835,120]
[330471499,1719470208296,-500.86458091,0.00043835,120]
[330471500,1719470208319,-500.0,0.00043835,120]
[330471501,1719470208342,-500.0,0.00043835,120]
[330471502,1719470208366,-500.0,0.00043835,120]
[330471503,1719470208389,-500.0,0.00043835,120]
[330471504,1719470208412,-1473.71,0.00043835,120]
[330471505,1719470208436,-500.0,0.00043835,120]
[330471506,1719470208459,-500.0,0.00043835,120]
[330471507,1719470208482,-501.37790916,0.00043835,120]
[330471508,1719470208505,-1009.42,0.00043835,120]
[330471509,1719470208527,-1626.29,0.00043835,120]
[330471510,1719470208550,-500.0,0.00043835,120]
[330471511,1719470208573,-500.0,0.00043835,120]
[330471512,1719470208597,-500.0,0.00043835,120]
[330471513,1719470208621,-829.26,0.00043835,120]
[330471514,1719470208644,-637.61,0.00043835,120]
[330471515,1719470208669,-500.0,0.00043835,120]
[330471516,1719470208693,-500.0,0.00043835,120]
[330471517,1719470208717,-1887.62,0.00043835,120]
[330471518,1719470208740,-561.57,0.00043835,120]
[330471519,1719470208762,-500.0,0.00043835,120]
[330471520,1719470208785,-500.0,0.00043835,120]
[330471521,1719470208809,-3566.47,0.00043835,120]
[330471522,1719470208834,-2738.53,0.00043835,120]
[330471523,1719470208862,-500.0,0.00043835,120]
[330471524,1719470208887,-500.0,0.00043835,120]
[330471525,1719470208910,-500.0,0.00043835,120]
[330471526,1719470208936,-950.91,0.00043835,120]
[330471527,1719470208959,-500.0,0.00043835,120]
[330471528,1719470208982,-500.0,0.00043835,120]
[330471529,1719470209005,-500.0,0.00043835,120]
[330471530,1719470209028,-2128.99,0.00043835,120]
[330471531,1719470209054,-584.97,0.00043835,120]
[330471532,1719470209081,-500.0,0.00043835,120]
[330471533,1719470209105,-500.0,0.00043835,120]
[330471534,1719470209129,-500.0,0.00043835,120]
[330471535,1719470209152,-500.0,0.00043835,120]
[330471536,1719470209175,-500.0,0.00043835,120]
[330471537,1719470209199,-500.0,0.00043835,120]
[330471538,1719470209222,-500.0,0.00043835,120]
[330471539,1719470209247,-500.0,0.00043835,120]
[330471540,1719470209272,-500.0,0.00043835,120]
[330471541,1719470209295,-2007.78,0.00043835,120]
[330471542,1719470209318,-500.0,0.00043835,120]
[330471543,1719470209341,-500.0,0.00043835,120]
[330471544,1719470209364,-500.0,0.00043835,120]
[330471545,1719470209387,-2184.87,0.00043835,120]
[330471546,1719470209411,-500.0,0.00043835,120]
[330471547,1719470209435,-500.0,0.00043835,120]
[330471548,1719470209458,-1581.4,0.00043835,120]
[330471549,1719470209482,-500.0,0.00043835,120]
[330471550,1719470209506,-201.01934047,0.00043835,120]
[330471551,1719470209531,-500.0,0.00043835,120]
[330471552,1719470209554,-500.0,0.00043835,120]
[330471553,1719470209579,-500.0,0.00043835,120]
[330471554,1719470209603,-500.0,0.00043835,120]
[330471555,1719470209626,-1710.41,0.00043835,120]
[330471556,1719470209650,-500.0,0.00043835,120]
[330471557,1719470209674,-1218.63,0.00043835,120]
[330471558,1719470209698,-500.0,0.00043835,120]
[330471559,1719470209720,-846.99,0.00043835,120]
[330471560,1719470209743,-882.32,0.00043835,120]
[330471561,1719470209766,-500.0,0.00043835,120]
[330471562,1719470209790,-3403.23,0.00043835,120]
[330471563,1719470209813,-500.0,0.00043835,120]
[330471564,1719470209835,-500.0,0.00043835,120]
[330471565,1719470209861,-500.0,0.00043835,120]
[330471566,1719470209885,-764.85,0.00043835,120]
[330471567,1719470209908,-500.0,0.00043835,120]
[330471568,1719470209934,-500.0,0.00043835,120]
[330471569,1719470209958,-500.0,0.00043835,120]
[330471570,1719470209981,-500.0,0.00043835,120]
[330471571,1719470210004,-500.0,0.00043835,120]
[330471572,1719470210027,-500.0,0.00043835,120]
[330471573,1719470210053,-1903.57,0.00043835,120]
[330471574,1719470210098,-500.0,0.00043835,120]
[330471575,1719470210123,-500.0,0.00043835,120]
[330471576,1719470210147,-798.16,0.00043835,120]
[330471577,1719470210171,-3520.37,0.00043835,120]
[330471578,1719470210195,-2535.48,0.00043835,120]
[330471579,1719470210218,-500.0,0.00043835,120]
[330471580,1719470210242,-500.0,0.00043835,120]
[330471581,1719470210267,-500.0,0.00043835,120]
[330471582,1719470210292,-1921.0,0.00043835,120]
[330471583,1719470210317,-500.0,0.00043835,120]
[330471584,1719470210341,-500.0,0.00043835,120]
[330471585,1719470210369,-579.43,0.00043835,120]
[330471586,1719470210392,-500.0,0.00043835,120]
[330471587,1719470210416,-500.0,0.00043835,120]
[330471588,1719470210439,-500.0,0.00043835,120]
[330471589,1719470210464,-1489.03,0.00043835,120]
[330471590,1719470210488,-1826.82,0.00043835,120]
[330471591,1719470210512,-2243.34,0.00043835,120]
[330471592,1719470210535,-585.48,0.00043835,120]
[330471593,1719470210559,-500.0,0.00043835,120]
[330471594,1719470210587,-500.0,0.00043835,120]
[330471595,1719470210612,-500.0,0.00043835,120]
[330471596,1719470210636,-949.95,0.00043835,120]
[330471597,1719470210661,-1999.1,0.00043835,120]
[330471598,1719470210686,-500.0,0.00043835,120]
[330471599,1719470210710,-500.0,0.00043835,120]
[330471600,1719470210980,-500.0,0.00043835,120]
[330471601,1719470211007,-500.0,0.00043835,120]
[330471602,1719470211035,-500.0,0.00043835,120]
[330471603,1719470211060,-623.80451278,0.00043835,120]
[330471604,1719470211095,-608.79,0.00043835,120]
[330471605,1719470211123,-693.21,0.00043835,120]
[330471606,1719470211148,-500.0,0.00043835,120]
[330471607,1719470211173,-500.0,0.00043835,120]
[330471608,1719470211198,-500.0,0.00043835,120]
[330471609,1719470211222,-2628.08,0.00043835,120]
[330471610,1719470211248,-500.0,0.00043835,120]
[330471611,1719470211272,-962.19,0.00043835,120]
[330471612,1719470211299,-3630.59,0.00043835,120]
[330471613,1719470211330,-500.0,0.00043835,120]
[330471614,1719470211358,-582.13,0.00043835,120]
[330471615,1719470211384,-500.0,0.00043835,120]
[330471616,1719470211411,-500.0,0.00043835,120]
[330471617,1719470211439,-563.53,0.00043835,120]
[330471618,1719470211464,-500.0,0.00043835,120]
[330471619,1719470211488,-500.0,0.00043835,120]
[330471620,1719470211513,-500.0,0.00043835,120]
[330471621,1719470211538,-505.51,0.00043835,120]
[330471622,1719470211565,-500.0,0.00043835,120]
[330471623,1719470211590,-764.17,0.00043835,120]
[330471624,1719470211614,-500.37549303,0.00043835,120]
[330471625,1719470211640,-558.82,0.00043835,120]
[330471626,1719470211665,-1223.58,0.00043835,120]
[330471627,1719470211690,-500.0,0.00043835,120]
[330471628,1719470211714,-501.5,0.00043835,120]
[330471629,1719470211738,-2352.31,0.00043835,120]
[330471630,1719470211763,-1674.09,0.00043835,120]
[330471631,1719470211788,-500.0,0.00043835,120]
[330471632,1719470211811,-500.0,0.00043835,120]
[330471633,1719470211837,-1800.27,0.00043835,120]
[330471634,1719470211865,-969.88,0.00043835,120]
[330471635,1719470211889,-503.8782805,0.00043835,120]
[330471636,1719470211913,-500.0,0.00043835,120]
[330471637,1719470211941,-535.37,0.00043835,120]
[330471638,1719470211968,-603.70836659,0.00043835,120]
[330471639,1719470211994,-370.00410301,0.00043835,120]
[330471640,1719470212019,-500.0,0.00043835,120]
[330471641,1719470212043,-1279.29,0.00043835,120]
[330471642,1719470212070,-500.0,0.00043835,120]
[330471643,1719470212096,-500.0,0.00043835,120]
[330471644,1719470212123,-3573.4,0.00043835,120]
[330471645,1719470212148,-945.8,0.00043835,120]
[330471646,1719470212172,-641.46,0.00043835,120]
[330471647,1719470212198,-501.64357811,0.00043835,120]
[330471648,1719470212224,-500.0,0.00043835,120]
[330471649,1719470212251,-983.26,0.00043835,120]
[330471650,1719470212277,-1754.81,0.00043835,120]
[330471651,1719470212303,-2986.97,0.00043835,120]
[330471652,1719470212330,-2844.83,0.00043835,120]
[330471653,1719470212354,-500.0,0.00043835,120]
[330471654,1719470212379,-3274.76,0.00043835,120]
[330471655,1719470212403,-500.0,0.00043835,120]
[330471656,1719470212428,-500.0,0.00043835,120]
[330471657,1719470212451,-994.21,0.00043835,120]
[330471658,1719470212476,-743.41,0.00043835,120]
[330471659,1719470212500,-500.0,0.00043835,120]
[330471660,1719470212524,-2185.92,0.00043835,120]
[330471661,1719470212548,-1621.72,0.00043835,120]
[330471662,1719470212573,-500.77721462,0.00043835,120]
[330471663,1719470212599,-2582.6,0.00043835,120]
[330471664,1719470212623,-555.35,0.00043835,120]
[330471665,1719470212647,-500.0,0.00043835,120]
[330471666,1719470212671,-3424.05,0.00043835,120]
[330471667,1719470212696,-500.0,0.00043835,120]
[330471668,1719470212720,-2318.59,0.00043835,120]
[330471669,1719470212745,-706.56,0.00043835,120]
[330471670,1719470212769,-3092.03,0.00043835,120]
[330471671,1719470212793,-14365.69,0.00043835,120]
[330471672,1719470212817,-500.0,0.00043835,120]
[330471673,1719470212844,-2292.12,0.00043835,120]
[330471674,1719470212868,-511.38,0.00043835,120]
[330471675,1719470212893,-1320.06,0.00043835,120]
[330471676,1719470212917,-500.0,0.00043835,120]
[330471677,1719470212945,-556.1,0.00043835,120]
[330471678,1719470212970,-1789.95,0.00043835,120]
[330471679,1719470212995,-1307.13,0.00043835,120]
[330471680,1719470213019,-2924.41,0.00043835,120]
[330471681,1719470213043,-677.72,0.00043835,120]
[330471682,1719470213068,-500.0,0.00043835,120]
[330471683,1719470213093,-500.0,0.00043835,120]
[330471684,1719470213117,-1139.96,0.00043835,120]
[330471685,1719470213140,-1441.99,0.00043835,120]
[330471686,1719470213164,-2037.17,0.00043835,120]
[330471687,1719470213188,-910.08,0.00043835,120]
[330471688,1719470213211,-500.95625982,0.00043835,120]
[330471689,1719470213234,-1069.35,0.00043835,120]
[330471690,1719470213264,-500.0,0.00043835,120]
[330471691,1719470213289,-501.25,0.00043835,120]
[330471692,1719470213315,-500.0,0.00043835,120]
[330471693,1719470213340,-502.31051576,0.00043835,120]
[330471694,1719470213367,-500.0,0.00043835,120]
[330471695,1719470213392,-500.0,0.00043835,120]
[330471696,1719470213417,-622.94,0.00043835,120]
[330471697,1719470213441,-500.0,0.00043835,120]
[330471698,1719470213465,-500.0,0.00043835,120]
[330471699,1719470213490,-500.0,0.00043835,120]
[330471700,1719470213513,-500.0,0.00043835,120]
[330471701,1719470213537,-500.0,0.00043835,120]
[330471702,1719470213561,-500.0,0.00043835,120]
[330471703,1719470213589,-1597.79,0.00043835,120]
[330471704,1719470213612,-500.0,0.00043835,120]
[330471705,1719470213637,-500.0,0.00043835,120]
[330471706,1719470213904,-994.61,0.00043835,120]
[330471707,1719470213933,-1242.56,0.00043835,120]
[330471708,1719470213956,-748.37,0.00043835,120]
[330471709,1719470213981,-500.0,0.00043835,120]
[330471710,1719470214004,-500.0,0.00043835,120]
[330471711,1719470214028,-1893.5,0.00043835,120]
[330471712,1719470214051,-500.0,0.00043835,120]
[330471713,1719470214077,-500.0,0.00043835,120]
[330471714,1719470214102,-2207.37,0.00043835,120]
[330471715,1719470214126,-500.0,0.00043835,120]
[330471716,1719470214150,-500.0,0.00043835,120]
[330471717,1719470214175,-591.75,0.00043835,120]
[330471718,1719470214200,-500.0,0.00043835,120]
[330471719,1719470214225,-2382.32,0.00043835,120]
[330471720,1719470214251,-500.0,0.00043835,120]
[330471721,1719470214278,-2262.08,0.00043835,120]
[330471722,1719470214302,-500.0,0.00043835,120]
[330471723,1719470214328,-500.0,0.00043835,120]
[330471724,1719470214352,-500.0,0.00043835,120]
[330471725,1719470214378,-500.0,0.00043835,120]
[330471726,1719470214403,-4422.21,0.00043835,120]
[330471727,1719470214429,-1273.36,0.00043835,120]
[330471728,1719470214466,-500.0,0.00043835,120]
[330471729,1719470214503,-505.70221411,0.00043835,120]
[330471730,1719470214538,-500.0,0.00043835,120]
[330471731,1719470214573,-500.0,0.00043835,120]
[330471732,1719470214609,-500.0,0.00043835,120]
[330471733,1719470214646,-500.0,0.00043835,120]
[330471734,1719470214682,-500.0,0.00043835,120]
[330471735,1719470214719,-500.0,0.00043835,120]
[330471736,1719470214755,-500.0,0.00043835,120]
[330471737,1719470214791,-11245.17,0.00043835,120]
[330471738,1719470214825,-591.6,0.00043835,120]
[330471739,1719470214859,-500.0,0.00043835,120]
[330471740,1719470214894,-1375.97,0.00043835,120]
[330471741,1719470214930,-500.0,0.00043835,120]
[330471742,1719470214966,-500.0,0.00043835,120]
[330471743,1719470215002,-500.0,0.00043835,120]
[330471744,1719470215038,-500.0,0.00043835,120]
[330471745,1719470215074,-500.0,0.00043835,120]
[330471746,1719470215111,-1791.62,0.00043835,120]
[330471747,1719470215147,-807.06,0.00043835,120]
[330471748,1719470215183,-500.0,0.00043835,120]
[330471749,1719470215220,-642.87,0.00043835,120]
[330471750,1719470215256,-500.0,0.00043835,120]
[330471751,1719470215293,-500.39906648,0.00043835,120]
[330471752,1719470215331,-500.0,0.00043835,120]
[330471753,1719470215368,-500.0,0.00043835,120]
[330471754,1719470215406,-1655.77,0.00043835,120]
[330471755,1719470215444,-227.77898197,0.00043835,120]
[330471756,1719470215480,-1580.28,0.00043835,120]
[330471757,1719470215517,-637.26,0.00043835,120]
[330471758,1719470215553,-171.64862213,0.00043835,120]
[330471759,1719470215591,-1337.87,0.00043835,120]
[330471760,1719470215627,-500.0,0.00043835,120]
[330471761,1719470215666,-1715.78,0.00043835,120]
[330471762,1719470215702,-500.0,0.00043835,120]
[330471763,1719470215739,-2084.58,0.00043835,120]
[330471764,1719470215776,-500.0,0.00043835,120]
[330471765,1719470215813,-500.0,0.00043835,120]
[330471766,1719470215852,-500.0,0.00043835,120]
[330471767,1719470215891,-1215.36,0.00043835,120]
[330471768,1719470215928,-500.0,0.00043835,120]
[330471769,1719470215964,-500.0,0.00043835,120]
[330471770,1719470215999,-500.0,0.00043835,120]
[330471771,1719470216034,-571.41218175,0.00043835,120]
[330471772,1719470216071,-500.0,0.00043835,120]
[330471773,1719470216106,-500.0,0.00043835,120]
[330471774,1719470216142,-500.0,0.00043835,120]
[330471775,1719470216178,-502.69,0.00043835,120]
[330471776,1719470216213,-500.0,0.00043835,120]
[330471777,1719470216251,-500.0,0.00043835,120]
[330471778,1719470216293,-2143.31,0.00043835,120]